bitfinex/quotes_SOLUSD_20240620
["timestamp","ask_amount","ask_price","bid_price","bid_amount"]
[1718896618129,6.3413,134.44,134.3,258.6]
[1718896618333,45.17,134.43,134.31,7.4451]
[1718896618518,65.17,134.43,134.31,7.4451]
[1718896618719,65.17,134.43,134.32,7.4446]
[1718896619149,20.17,134.43,134.31,40.9735]
[1718896619347,20.17,134.43,134.33,7.4442]
[1718896619636,20.17,134.43,134.34,9.16553911]
[1718896620325,20.17,134.43,134.34,1.72193911]
[1718896620527,6.4008,134.41,134.34,1.72193911]
[1718896620742,0.17,134.4,134.34,1.72193911]
[1718896620950,45.17,134.4,134.34,1.72193911]
[1718896622234,45.17,134.4,134.23,401.0]
[1718896622235,38.6243,134.38,134.24,7.4488]
[1718896622543,6.1932,134.35,134.2,277.2285]
[1718896622927,45.17,134.34,134.22,7.4501]
[1718896623423,45.17,134.34,134.18,13.80897492]
[1718896623424,16.0529,134.33,134.18,13.80897492]
[1718896623624,6.2181,134.31,134.22,7.4503]
[1718896623922,6.2181,134.31,134.25,7.4486]
[1718896624349,16.0529,134.33,134.3,7.4459]
[1718896624547,16.0529,134.33,134.22,6.0284]
[1718896624737,16.0529,134.33,134.29,7.4464]
[1718896625045,16.5322,134.39,134.3,1.6563553]
[1718896625344,16.5322,134.39,134.3,0.17]
[1718896625519,16.5322,134.39,134.3,1.60103031]
[1718896625923,16.5322,134.39,134.31,7.445]
[1718896626222,16.5322,134.39,134.32,1.60079191]
[1718896626843,16.5322,134.39,134.31,7.4453]
[1718896627141,16.5322,134.39,134.26,7.448]
[1718896627325,6.1327,134.38,134.26,7.4479]
[1718896627528,6.1327,134.38,134.23,277.2235]
[1718896627729,6.1327,134.38,134.25,7.4485]
[1718896627926,6.1327,134.36,134.19,274.6529]
[1718896628241,16.1281,134.34,134.19,297.0129]
[1718896628435,16.1281,134.34,134.28,7.447]
[1718896628648,16.1281,134.34,134.24,7.4491]
[1718896628844,45.17,134.33,134.23,7.4496]
[1718896629144,45.17,134.33,134.22,7.4503]
[1718896629344,45.17,134.33,134.19,297.0129]
[1718896629531,45.17,134.33,134.22,7.4503]
[1718896629929,45.17,134.33,134.22,7.4501]
[1718896630129,6.4902,134.32,134.21,7.4507]
[1718896630345,45.17,134.31,134.2,7.4513]
[1718896630744,45.17,134.31,134.15,18.6358]
[1718896630928,16.43,134.29,134.15,18.6358]
[1718896631124,6.3659,134.27,134.14,258.6]
[1718896631341,65.17,134.26,134.15,7.4542]
[1718896631550,65.17,134.26,134.12,52.218902]
[1718896631551,65.17,134.26,134.16,7.4537]
[1718896631731,65.17,134.26,134.15,7.4541]
[1718896631937,65.17,134.26,134.12,40.9988]
[1718896632144,65.17,134.26,134.14,7.4545]
[1718896632738,20.17,134.26,134.14,40.997]
[1718896632936,0.17,134.26,134.18,7.4522]
[1718896633138,0.17,134.26,134.14,22.36]
[1718896633139,0.17,134.26,134.19,0.65852146]
[1718896633449,6.3659,134.27,134.19,0.65852146]
[1718896633754,0.17,134.26,134.18,7.4526]
[1718896633954,6.3659,134.27,134.1,21.7037]
[1718896633955,6.3659,134.27,134.19,7.4517]
[1718896634246,6.3659,134.27,134.2,7.4515]
[1718896634743,6.3659,134.27,134.19,7.4519]
[1718896635552,6.3659,134.27,134.18,7.4524]
[1718896635757,6.3659,134.27,134.17,7.6229]
[1718896635940,0.17,134.26,134.13,40.9978]
[1718896636144,45.17,134.26,134.16,7.4536]
[1718896636439,0.17,134.26,134.17,52.4532]
[1718896636637,0.17,134.26,134.16,7.4535]
[1718896636638,45.17,134.26,134.16,7.4535]
[1718896637151,45.17,134.26,134.17,7.4531]
[1718896637336,45.17,134.26,134.18,1.48803242]
[1718896638051,28.54311965,134.29,134.18,1.48803242]
[1718896638252,7.7574633,134.31,134.2,22.36]
[1718896638460,6.1795,134.33,134.24,22.36]
[1718896638754,6.1795,134.33,134.21,65.51]
[1718896638755,6.1795,134.33,134.27,7.4474]
[1718896639054,6.1795,134.33,134.25,0.51]
[1718896639255,6.1795,134.33,134.26,7.4479]
[1718896639554,6.1795,134.33,134.27,7.4474]
[1718896639764,6.1795,134.33,134.26,7.448]
[1718896640135,6.1795,134.33,134.21,20.0]
[1718896640340,0.17,134.32,134.22,7.4504]
[1718896640648,0.17,134.32,134.23,7.4497]
[1718896641047,0.17,134.32,134.21,0.17]
[1718896641233,6.1795,134.33,134.22,22.36]
[1718896641442,6.1795,134.33,134.28,7.4469]
[1718896641656,6.1795,134.33,134.29,1.48622907]
[1718896641937,6.1795,134.33,134.29,8.93252907]
[1718896642155,6.1795,134.33,134.3,1.4861184]
[1718896642355,6.1795,134.33,134.27,7.4474]
[1718896642543,6.1795,134.33,134.28,7.447]
[1718896642735,6.1795,134.33,134.29,1.48556507]
[1718896643757,6.1795,134.33,134.27,1.49104008]
[1718896643960,6.1795,134.33,134.27,8.93854008]
[1718896644348,15.4891,134.34,134.3,7.4458]
[1718896644560,15.4891,134.34,134.31,1.49059602]
[1718896645765,15.4891,134.34,134.29,8.93699621]
[1718896646066,6.001,134.37,134.33,7.4439]
[1718896646355,6.001,134.37,134.33,7.4441]
[1718896646946,6.001,134.37,134.31,7.4449]
[1718896647146,6.001,134.37,134.3,0.17]
[1718896647361,6.001,134.37,134.28,7.447]
[1718896647571,6.001,134.37,134.29,45.0]
[1718896647860,6.001,134.37,134.3,7.4457]
[1718896648646,6.001,134.37,134.31,7.4449]
[1718896648949,6.001,134.37,134.3,0.17]
[1718896649164,6.001,134.37,134.3,7.6158]
[1718896649361,6.001,134.37,134.3,0.17]
[1718896649546,6.001,134.37,134.31,45.0]
[1718896649745,6.001,134.37,134.31,52.445]
[1718896650164,6.001,134.37,134.31,45.0]
[1718896650368,6.001,134.37,134.3,0.34]
[1718896650369,6.001,134.37,134.33,7.444]
[1718896650542,15.9844,134.39,134.33,7.4439]
[1718896650860,6.5117,134.41,134.36,7.4426]
[1718896651468,6.5117,134.41,134.34,7.4435]
[1718896652047,6.5117,134.41,134.33,7.4442]
[1718896652262,6.5117,134.41,134.27,6.2039]
[1718896652560,6.5117,134.41,134.32,7.4445]
[1718896652561,0.17,134.4,134.32,7.4445]
[1718896652764,0.17,134.4,134.28,20.17]
[1718896652964,0.17,134.4,134.28,20.0]
[1718896653266,0.17,134.4,134.3,7.4459]
[1718896653445,6.5117,134.41,134.28,42.36]
[1718896653653,6.5117,134.41,134.32,7.4446]
[1718896653861,6.5117,134.41,134.33,7.4442]
[1718896654069,6.5117,134.41,134.34,7.4437]
[1718896654365,6.5117,134.41,134.32,22.36]
[1718896654563,6.5117,134.41,134.35,7.4432]
[1718896654865,6.5117,134.41,134.34,7.4435]
[1718896655048,6.5117,134.41,134.35,52.6131]
[1718896655245,6.5117,134.41,134.34,7.4436]
[1718896655546,6.5117,134.41,134.33,45.51]
[1718896655858,6.5117,134.41,134.34,7.6135]
[1718896656059,6.5117,134.41,134.36,7.4422]
[1718896656253,6.5117,134.41,134.34,0.17]
[1718896656564,6.5117,134.41,134.38,7.4414]
[1718896656766,21.9689,134.48,134.39,45.56828262]
[1718896656968,21.9689,134.48,134.4,20.56881644]
[1718896657266,21.9689,134.48,134.41,45.0]
[1718896657479,21.9689,134.48,134.42,7.8377571]
[1718896657768,21.9689,134.48,134.4,20.17]
[1718896657968,21.9689,134.48,134.4,7.6103]
[1718896658161,21.9689,134.48,134.41,7.4396]
[1718896658547,21.9689,134.48,134.33,40.69297786]
[1718896658748,21.9689,134.48,134.38,7.4414]
[1718896658944,21.9689,134.48,134.39,45.0]
[1718896659867,0.17,134.47,134.38,45.0]
[1718896660068,0.17,134.47,134.37,45.34]
[1718896660265,0.17,134.47,134.37,52.782]
[1718896660657,0.17,134.47,134.37,45.34]
[1718896660965,0.17,134.47,134.37,7.6118]
[1718896661167,0.17,134.47,134.37,0.17]
[1718896661367,0.17,134.47,134.35,7.4429]
[1718896661685,45.17,134.47,134.36,7.4425]
[1718896661968,0.17,134.47,134.36,7.4425]
[1718896662562,0.17,134.47,134.35,7.4429]
[1718896662875,22.6417,134.46,134.3,24.43267786]
[1718896663057,45.17,134.45,134.33,27.4441]
[1718896663255,45.17,134.45,134.33,20.0]
[1718896663762,45.17,134.45,134.34,1.86296966]
[1718896663960,45.17,134.45,134.32,20.0]
[1718896664273,6.0057,134.44,134.32,27.4446]
[1718896664456,45.17,134.43,134.32,20.0]
[1718896664658,6.2316,134.41,134.27,273.27347786]
[1718896664960,0.17,134.4,134.28,27.447]
[1718896665171,45.17,134.4,134.28,27.447]
[1718896665373,45.17,134.4,134.26,7.448]
[1718896665374,15.1361,134.39,134.26,7.448]
[1718896665685,51.3306,134.38,134.27,20.0]
[1718896665853,51.3306,134.38,134.26,7.448]
[1718896666047,51.3306,134.38,134.23,288.4095]
[1718896666048,45.17,134.38,134.23,288.4095]
[1718896666277,21.6811,134.37,134.23,258.6]
[1718896666653,45.17,134.36,134.24,7.4493]
[1718896666868,45.17,134.36,134.23,266.0496]
[1718896667064,20.0,134.35,134.23,266.0496]
[1718896667269,0.17,134.34,134.24,7.4492]
[1718896668176,6.4104,134.33,134.22,7.45]
[1718896668364,16.647,134.32,134.22,7.45]
[1718896668675,16.647,134.32,134.21,7.4508]
[1718896668877,16.647,134.32,134.2,7.4513]
[1718896669260,16.647,134.32,134.21,7.4508]
[1718896669462,16.647,134.32,134.19,20.0]
[1718896669463,16.647,134.32,134.22,7.4503]
[1718896669965,16.647,134.32,134.23,7.4497]
[1718896670766,16.647,134.32,134.21,7.6206]
[1718896671162,16.647,134.32,134.22,45.0]
[1718896671358,16.647,134.32,134.21,0.17]
[1718896671682,16.647,134.32,134.21,0.34]
[1718896672057,16.647,134.32,134.21,7.7909]
[1718896672283,16.647,134.32,134.22,52.6203]
[1718896672582,16.647,134.32,134.22,0.17]
[1718896672770,16.647,134.32,134.21,7.7909]
[1718896672958,16.647,134.32,134.22,45.0]
[1718896674874,16.647,134.32,134.22,52.4503]
[1718896675079,16.647,134.32,134.23,7.4497]
[1718896675385,16.647,134.32,134.22,45.0]
[1718896676182,16.647,134.32,134.22,52.4501]
[1718896676390,16.647,134.32,134.22,45.0]
[1718896676572,16.647,134.32,134.21,45.34]
[1718896676884,16.647,134.32,134.21,52.7908]
[1718896677366,16.647,134.32,134.21,45.17]
[1718896677568,16.647,134.32,134.21,52.6209]
[1718896678888,16.647,134.32,134.21,45.0]
[1718896679199,15.8328,134.29,134.2,7.4515]
[1718896679360,0.17,134.28,134.19,7.4519]
[1718896679562,0.17,134.28,134.18,7.4524]
[1718896680196,0.17,134.28,134.17,39.007]
[1718896680490,15.8328,134.29,134.2,7.4512]
[1718896680698,15.8328,134.29,134.19,7.6218]
[1718896680875,0.17,134.28,134.19,7.6218]
[1718896681073,0.17,134.28,134.2,7.4515]
[1718896681276,0.17,134.28,134.19,7.6218]
[1718896681481,0.17,134.28,134.2,45.0]
[1718896682075,15.8328,134.29,134.18,7.6223]
[1718896682268,45.17,134.28,134.17,7.4527]
[1718896683476,45.17,134.28,134.18,45.0]
[1718896683905,45.17,134.28,134.18,52.4525]
[1718896684085,0.17,134.28,134.19,7.6218]
[1718896684397,0.17,134.28,134.18,45.0]
[1718896684691,0.17,134.28,134.19,7.4519]
[1718896684889,15.8328,134.29,134.2,45.0]
[1718896685189,15.8328,134.29,134.18,52.6223]
[1718896685382,15.8328,134.29,134.19,0.17]
[1718896685692,6.1645,134.3,134.15,18.6354]
[1718896685693,15.6866,134.27,134.15,18.6354]
[1718896685874,15.6866,134.25,134.13,7.4553]
[1718896686071,15.6866,134.25,134.09,8.11297786]
[1718896686273,15.6866,134.25,134.14,22.36]
[1718896686705,15.6866,134.25,134.18,7.4525]
[1718896686874,15.6866,134.25,134.11,29.868285]
[1718896687074,15.6866,134.25,134.12,45.51]
[1718896687273,15.6866,134.25,134.13,22.36]
[1718896687479,15.6866,134.25,134.14,65.51]
[1718896687790,15.6866,134.25,134.15,45.17]
[1718896688020,15.6866,134.25,134.16,0.17]
[1718896688198,15.6866,134.25,134.15,7.454]
[1718896688520,0.17,134.24,134.13,7.4553]
[1718896688810,0.17,134.24,134.11,49.11387786]
[1718896688811,45.17,134.24,134.12,7.4557]
[1718896689017,45.17,134.24,134.14,7.4545]
[1718896689219,0.17,134.24,134.15,7.4541]
[1718896689426,15.6866,134.25,134.15,7.454]
[1718896690112,0.17,134.24,134.12,15.6866]
[1718896690415,45.17,134.24,134.13,52.625]
[1718896690624,45.17,134.24,134.13,7.455]
[1718896690817,0.17,134.24,134.12,15.6866]
[1718896691020,45.17,134.24,134.12,15.6866]
[1718896691209,45.17,134.24,134.13,7.4551]
[1718896691517,45.17,134.24,134.12,7.4558]
[1718896691738,6.6337,134.23,134.11,7.4564]
[1718896691923,6.6337,134.23,134.08,20.1950603]
[1718896691924,0.17,134.22,134.09,22.36]
[1718896692224,6.6337,134.23,134.16,7.4537]
[1718896692605,6.6337,134.23,134.17,7.4531]
[1718896692832,6.6337,134.23,134.17,7.4532]
[1718896693209,15.6866,134.25,134.2,7.4515]
[1718896693701,15.6866,134.25,134.21,52.4509]
[1718896693900,22.5678,134.32,134.21,45.0]
[1718896694229,22.5678,134.32,134.22,7.7902]
[1718896694429,22.5678,134.32,134.23,45.0]
[1718896695005,22.5678,134.32,134.2,7.6211]
[1718896695315,0.17,134.31,134.21,46.65768579]
[1718896695623,0.17,134.31,134.21,45.17]
[1718896695800,0.17,134.31,134.22,0.17]
[1718896697126,0.17,134.31,134.22,0.68754524]
[1718896697520,0.17,134.31,134.22,0.17]
[1718896697908,7.4479,134.27,134.22,7.62]
[1718896698222,7.4479,134.27,134.23,45.0]
[1718896698423,7.4468,134.29,134.24,7.789]
[1718896698626,22.5678,134.32,134.25,45.17]
[1718896698811,22.5678,134.32,134.26,52.6177]
[1718896698812,7.4455,134.31,134.26,52.6177]
[1718896699012,7.4452,134.32,134.27,7.4474]
[1718896699285,7.4452,134.32,134.28,0.34]
[1718896699528,7.4446,134.33,134.28,45.34]
[1718896699700,7.4446,134.33,134.28,52.7868]
[1718896699901,18.6081,134.35,134.28,45.34]
[1718896700107,21.2701,134.36,134.28,45.34]
[1718896700108,21.2701,134.36,134.28,45.17]
[1718896700326,18.6082,134.35,134.28,45.17]
[1718896700517,7.4455,134.31,134.28,45.17]
[1718896700826,7.4462,134.3,134.27,45.0]
[1718896701133,7.4462,134.3,134.26,45.17]
[1718896701306,7.4456,134.31,134.26,52.6181]
[1718896701502,7.445,134.32,134.27,7.4476]
[1718896701707,7.445,134.32,134.28,45.17]
[1718896701927,7.4454,134.31,134.28,45.0]
[1718896702113,7.4454,134.31,134.27,45.0]
[1718896702734,18.6138,134.31,134.2,34.0071]
[1718896702932,21.9859,134.29,134.19,12.14398325]
[1718896703134,7.4494,134.24,134.2,7.4513]
[1718896703338,7.449,134.25,134.2,7.4513]
[1718896703536,21.9859,134.29,134.19,5.86788325]
[1718896703739,7.4509,134.22,134.17,7.4531]
[1718896703921,0.17,134.28,134.18,7.4526]
[1718896704238,0.17,134.28,134.19,8.92569123]
[1718896704947,0.17,134.28,134.19,1.47369123]
[1718896705442,45.17,134.28,134.16,7.4537]
[1718896705646,45.17,134.28,134.15,7.4541]
[1718896705850,42.279,134.27,134.13,7.4549]
[1718896706026,45.17,134.26,134.11,258.6]
[1718896706233,45.17,134.26,134.14,7.4548]
[1718896706429,20.0,134.25,134.14,7.4548]
[1718896706634,0.17,134.24,134.13,7.4554]
[1718896706840,0.17,134.24,134.14,7.4548]
[1718896707543,0.17,134.24,134.11,280.96]
[1718896707930,0.17,134.24,134.13,7.4551]
[1718896708145,22.7805,134.23,134.12,7.6257]
[1718896708357,22.7805,134.23,134.13,7.4553]
[1718896708843,22.7805,134.23,134.14,52.4548]
[1718896709231,22.7805,134.23,134.14,45.0]
[1718896709433,15.4631,134.26,134.14,22.36]
[1718896709747,15.4631,134.26,134.17,7.4531]
[1718896709927,15.4631,134.26,134.18,45.17]
[1718896710129,15.4631,134.26,134.16,7.4537]
[1718896710328,15.4631,134.26,134.17,45.0]
[1718896710641,15.4631,134.26,134.17,52.4531]
[1718896710830,0.17,134.25,134.17,52.4531]
[1718896711146,0.17,134.25,134.17,45.0]
[1718896711722,0.17,134.25,134.15,0.34]
[1718896711926,6.4503,134.24,134.14,0.17]
[1718896712148,0.17,134.23,134.14,45.34]
[1718896712344,0.17,134.23,134.14,45.17]
[1718896713045,0.17,134.23,134.14,0.17]
[1718896713245,6.4503,134.24,134.14,0.17]
[1718896713246,6.4503,134.24,134.14,22.53]
[1718896713422,6.4503,134.24,134.18,7.4523]
[1718896713627,6.4503,134.24,134.17,0.34]
[1718896713827,6.4503,134.24,134.16,45.17]
[1718896714235,6.4503,134.24,134.16,52.6237]
[1718896714643,6.4503,134.24,134.17,20.0]
[1718896715255,6.4503,134.24,134.18,45.17]
[1718896715627,6.4503,134.24,134.18,52.6223]
[1718896715824,6.4503,134.24,134.18,45.17]
[1718896716028,6.4503,134.24,134.17,20.0]
[1718896716334,6.4503,134.24,134.15,0.17]
[1718896716533,6.4503,134.24,134.14,72.9646]
[1718896717253,6.4503,134.24,134.14,27.4546]
[1718896717435,0.17,134.23,134.14,27.4546]
[1718896717833,6.4503,134.24,134.15,7.4542]
[1718896718036,6.4503,134.24,134.16,20.0]
[1718896718245,6.4503,134.24,134.18,7.4526]
[1718896718433,6.4503,134.24,134.17,7.4529]
[1718896718744,6.4503,134.24,134.18,27.4525]
[1718896718946,6.4503,134.24,134.18,52.4525]
[1718896719262,6.4503,134.24,134.17,0.17]
[1718896719552,6.4503,134.24,134.17,52.6232]
[1718896719759,6.4503,134.24,134.18,20.0]
[1718896720263,15.4631,134.26,134.19,45.0]
[1718896720443,15.4631,134.26,134.21,7.4506]
[1718896720632,15.4631,134.26,134.22,20.0]
[1718896721257,15.4631,134.26,134.2,20.17]
[1718896721676,15.4631,134.26,134.2,20.0]
[1718896722757,15.4631,134.26,134.16,22.9167]
[1718896722959,15.4631,134.26,134.17,20.0]
[1718896723374,0.17,134.25,134.14,7.4546]
[1718896723534,0.17,134.25,134.15,20.0]
[1718896724451,0.17,134.25,134.15,27.4542]
[1718896724678,0.17,134.25,134.16,45.17]
[1718896725367,0.17,134.25,134.16,45.0]
[1718896725546,0.17,134.25,134.15,20.0]
[1718896726247,15.4631,134.26,134.16,45.34]
[1718896726747,15.4631,134.26,134.16,52.7935]
[1718896726966,0.17,134.25,134.16,45.0]
[1718896727264,0.17,134.25,134.15,45.0]
[1718896727470,0.17,134.25,134.16,20.17]
[1718896727646,15.4631,134.26,134.17,45.0]
[1718896728337,15.4631,134.26,134.18,0.34]
[1718896728572,15.4631,134.26,134.18,0.17]
[1718896729576,15.4631,134.26,134.16,20.0]
[1718896729858,0.17,134.25,134.14,20.0]
[1718896730070,6.5024,134.24,134.13,20.0]
[1718896730265,0.17,134.23,134.13,20.0]
[1718896730643,15.5062,134.22,134.13,20.0]
[1718896731565,15.5062,134.22,134.12,20.0]
[1718896731788,6.3815,134.21,134.12,20.0]
[1718896731947,6.5515,134.21,134.1,20.0]
[1718896732147,6.5515,134.21,134.1,7.4566]
[1718896732365,6.5515,134.21,134.11,27.4564]
[1718896732542,6.3815,134.21,134.11,42.36]
[1718896732747,6.3815,134.21,134.16,7.4535]
[1718896732977,6.3815,134.21,134.17,27.623]
[1718896733381,6.3815,134.21,134.18,45.0]
[1718896733683,6.3815,134.21,134.17,27.623]
[1718896733886,15.5062,134.22,134.18,45.0]
[1718896734272,15.5062,134.22,134.18,52.4524]
[1718896734583,15.5062,134.22,134.19,0.17]
[1718896734765,15.5062,134.22,134.19,20.17]
[1718896735079,6.0772,134.24,134.19,20.17]
[1718896735461,6.0772,134.24,134.19,27.6221]
[1718896736062,6.0772,134.24,134.19,20.17]
[1718896739368,6.0772,134.24,134.19,20.0]
[1718896739573,6.0772,134.24,134.18,45.0]
[1718896739574,6.0772,134.24,134.1,391.0129]
[1718896739881,6.0772,134.24,134.11,20.0]
[1718896740287,6.0772,134.24,134.14,7.4546]
[1718896740491,6.0772,134.24,134.15,20.0]
[1718896740664,15.4353,134.22,134.13,7.4554]
[1718896740984,15.4353,134.22,134.14,20.0]
[1718896741184,15.4353,134.22,134.13,7.4554]
[1718896741685,15.4353,134.22,134.14,7.4547]
[1718896742094,15.4353,134.22,134.15,0.17]
[1718896742269,15.4353,134.22,134.11,22.36]
[1718896742473,0.17,134.21,134.12,20.0]
[1718896742769,15.4353,134.22,134.12,7.4558]
[1718896743080,15.4353,134.22,134.13,20.0]
[1718896743383,0.17,134.21,134.13,20.0]
[1718896743587,0.17,134.21,134.12,20.0]
[1718896744164,6.5545,134.2,134.12,20.0]
[1718896744386,6.5545,134.2,134.09,20.0]
[1718896744788,6.5545,134.2,134.09,27.4575]
[1718896745092,6.5545,134.2,134.1,7.457]
[1718896745402,6.5545,134.2,134.11,20.0]
[1718896745890,6.5545,134.2,134.11,27.4564]
[1718896746182,6.5545,134.2,134.11,27.4562]
[1718896746389,6.5545,134.2,134.11,20.0]
[1718896746874,6.5545,134.2,134.12,45.0]
[1718896747790,6.5545,134.2,134.13,2.01651927]
[1718896747964,6.5545,134.2,134.12,45.0]
[1718896748166,6.5545,134.2,134.11,20.0]
[1718896748365,15.1432,134.18,134.1,20.0]
[1718896748576,15.1432,134.18,134.04,14.55757261]
[1718896748781,0.17,134.17,134.07,7.4585]
[1718896749097,0.17,134.17,134.07,7.4586]
[1718896749388,15.1432,134.18,134.08,7.4581]
[1718896749967,6.4969,134.16,134.09,0.50243158]
[1718896750167,6.4969,134.16,134.06,22.86243158]
[1718896750471,6.4969,134.16,134.07,20.0]
[1718896750674,6.4969,134.16,134.07,7.4586]
[1718896750865,6.4969,134.16,134.08,20.0]
[1718896751392,6.4969,134.16,134.07,20.17]
[1718896751590,15.061,134.15,134.07,0.17]
[1718896752065,15.061,134.15,134.07,45.17]
[1718896752270,15.061,134.15,134.08,20.0]
[1718896752894,15.061,134.15,134.04,20.0]
[1718896752895,0.17,134.14,134.04,20.0]
[1718896753098,15.8285,134.12,134.01,7.4618]
[1718896753393,6.6645,134.1,134.01,15.061]
[1718896753566,6.6645,134.1,134.0,7.4626]
[1718896753769,6.6645,134.1,134.01,7.4616]
[1718896753971,6.6645,134.1,134.02,7.4615]
[1718896754192,6.6645,134.1,134.01,7.4618]
[1718896754395,6.6645,134.1,134.0,7.4624]
[1718896754604,6.6645,134.1,134.01,7.462]
[1718896754891,6.6645,134.1,134.01,7.4616]
[1718896755273,6.6645,134.1,134.0,7.4624]
[1718896755591,6.6645,134.1,134.02,7.4613]
[1718896756175,6.6645,134.1,134.01,7.4619]
[1718896756374,6.6645,134.1,134.02,20.0]
[1718896756997,6.6645,134.1,133.97,22.36]
[1718896756998,15.2253,134.09,133.97,22.36]
[1718896757177,6.619,134.08,133.94,277.2637]
[1718896757494,6.619,134.08,133.98,7.4637]
[1718896758203,6.449,134.08,134.0,22.36]
[1718896758409,6.449,134.08,134.01,20.0]
[1718896758581,6.449,134.08,134.02,7.4614]
[1718896758899,6.449,134.08,134.03,20.0]
[1718896759797,6.449,134.08,134.02,27.4615]
[1718896759987,6.449,134.08,134.03,45.0]
[1718896760880,15.2253,134.09,134.01,22.7]
[1718896760881,15.2253,134.09,134.05,7.4598]
[1718896761081,22.026,134.12,134.06,0.17]
[1718896761276,22.026,134.12,134.06,52.6292]
[1718896761506,22.026,134.12,134.06,7.4592]
[1718896761689,22.026,134.12,134.07,45.0]
[1718896761997,22.026,134.12,134.04,0.34]
[1718896762205,22.026,134.12,134.02,20.17]
[1718896762375,22.026,134.12,134.02,20.0]
[1718896762577,0.17,134.11,133.96,6.3175]
[1718896762781,45.0,134.11,134.0,7.4624]
[1718896763004,0.17,134.11,134.01,20.0]
[1718896763216,22.026,134.12,134.02,7.4612]
[1718896763383,22.026,134.12,134.01,20.0]
[1718896763586,22.026,134.12,134.02,7.4613]
[1718896763890,22.026,134.12,134.04,7.4604]
[1718896764112,22.026,134.12,134.05,45.0]
[1718896764297,22.026,134.12,134.06,20.17]
[1718896764986,22.026,134.12,134.06,0.17]
[1718896765294,22.026,134.12,134.05,20.0]
[1718896766010,22.026,134.12,134.07,7.4583]
[1718896766488,22.026,134.12,134.06,7.799]
[1718896766692,22.026,134.12,134.07,45.0]
[1718896767088,22.026,134.12,134.06,52.7991]
[1718896768182,22.026,134.12,134.07,7.4587]
[1718896768403,22.026,134.12,134.08,45.17]
[1718896769399,22.026,134.12,134.05,20.0]
[1718896769610,22.026,134.12,134.04,20.0]
[1718896769913,22.026,134.12,134.04,42.44]
[1718896770106,22.026,134.12,134.06,7.459]
[1718896770287,22.026,134.12,134.07,20.0]
[1718896770810,22.026,134.12,134.08,45.17]
[1718896771189,22.026,134.12,134.07,20.0]
[1718896771391,22.026,134.12,134.04,20.0]
[1718896771588,22.026,134.12,134.05,45.34]
[1718896771806,22.026,134.12,134.06,20.0]
[1718896772006,22.026,134.12,134.01,5.97967945]
[1718896772214,22.026,134.12,134.02,7.4615]
[1718896772396,22.026,134.12,134.03,20.0]